Cogmind - Beta 15 @@@ ROGUE MODE // 2025.06.21 @ 16:47:52 Player: Ladmageddon Result: Destroyed by QV-WPD(j) with Overtuned Pulse Rifle Performance ------------- Evolutions (0) 0 Regions Visited (3) 600 Robots Destroyed (10) 50 Value Destroyed (236) 236 Prototype IDs (6) 120 Alien Tech Used (0) 0 Bonus (800) 800 TOTAL SCORE: 1806 Bonus ------- Registered with UFD 300 Met Optimus in HQ 500 Cogmind --------- Core Integrity 0/250 Matter 300/300 Energy 125/125 System Corruption 2% Temperature Cool (37) Movement Core (3450) Ox68 Location -7/Scraptown Parts ------- > --- POWER (1) -------- Light Ion Engine > --- PROPULSION (2) --- Overtuned Treads Overtuned Treads > --- UTILITY (2) ------ Humpback > --- WEAPON (2) ------- High-powered Shotgun > --- INVENTORY (35) --- Deuterium Engine Light Deuterium Engine Overtuned Treads Overtuned Treads Subdweller Monowheel Armored Huge Wheel Scrap Suit Makeshift Microdissipator Network Signal Interpreter Improved Targeting Computer Heavy Armor Plating Hacking Suite EM Pulse Gun Overtuned Pulse Rifle Barrage Gun Makeshift Hammer Peak State ------------ > --- POWER ------------ Light Ion Engine > --- PROPULSION ------- Armored Huge Wheel > --- UTILITY ---------- Small Storage Unit Improved Terrain Scanner > --- WEAPON ----------- Gatling Laser Mining Laser > --- INVENTORY -------- Deuterium Engine Subdweller Monowheel Signal Interpreter Improved Targeting Computer EM Pulse Gun High-powered Shotgun Barrage Gun [Rating: 19] Favorites ----------- Power Light Ion Engine Engine Light Ion Engine Propulsion Armored Huge Wheel Treads Overtuned Treads Wheel Armored Huge Wheel Utility Small Storage Unit Device Improved Terrain Scanner Storage Small Storage Unit Weapon Mining Laser Energy Gun EM Pulse Gun Ballistic Gun High-powered Shotgun Special Weapon Mining Laser Build | -11 -10 -10 -7 ------- Run | Yrd Mat Sub Scr Slots Evolved . | . . . . Power . | . . . . Propulsion . | . . . . Utility . | . . . . Weapon . | . . . . Parts Attached 18 | 7 . 5 6 Power 3 | 1 . 2 . Engine 3 | 1 . 2 . Core . | . . . . Reactor . | . . . . Propulsion 6 | 2 . 1 3 Treads 2 | . . . 2 Leg . | . . . . Wheel 4 | 2 . 1 1 Hover . | . . . . Flight . | . . . . Utility 3 | 2 . . 1 Device 1 | 1 . . . Storage 2 | 1 . . 1 Processor . | . . . . Hackware . | . . . . Protection . | . . . . Artifact . | . . . . Weapon 6 | 2 . 2 2 Energy Gun 2 | 1 . . 1 Energy Cannon . | . . . . Ballistic Gun 3 | 1 . 1 1 Ballistic Cannon . | . . . . Launcher . | . . . . Special Weapon 1 | . . 1 . Impact Weapon . | . . . . Slashing Weapon . | . . . . Piercing Weapon . | . . . . Special Melee Weapon . | . . . . Unidentified Prototypes . | . . . . Parts Lost 6 | . . 5 1 Power 2 | . . 2 . Propulsion 1 | . . 1 . Utility . | . . . . Weapon 3 | . . 2 1 Highest Loss Streak 3 | . . 3 1 To Critical Strikes . | . . . . Average Backups 7 | 1 3 4 8 Power 1 | . 1 1 1 Propulsion . | . . . 1 Utility 2 | . . 1 3 Weapon 2 | 1 2 2 3 Tool/Special . | . . . . Unused Backups 10 | . . . 10 Power 1 | . . . 1 Propulsion 1 | . . . 1 Utility 5 | . . . 5 Weapon 3 | . . . 3 Tool/Special . | . . . . Average Slot Usage (%) 82 | . 100 94 77 Engine 13 | . 14 13 14 Treads 1 | . . . 2 Wheel 18 | . 28 27 15 Device 9 | . 14 14 8 Storage 14 | . 14 14 14 Energy Gun 3 | . 14 4 2 Ballistic Gun 9 | . 14 18 6 Special Weapon 10 | . . 1 13 Peak Build Rating 19 | 9 9 13 19 Average Rating 14 | 5 9 11 15 On Entrance 6 | . 9 9 9 Naked Turns . | . . . . Heaviest Build 207 | 13 13 16 207 Greatest Support 36 | 26 26 36 36 Greatest Overweight (x) 68 | . . . 68 Average Overweight (x) 1 | . . . 1 Largest Inventory Capacity 35 | 8 8 8 35 Average Capacity 16 | 7 8 8 19 Most Carried 19 | 4 4 7 19 Average Carried 7 | 2 3 4 9 Final Capacity 35 | 8 8 8 35 Final Carried 19 | 3 4 4 19 Class Distribution -------------------- 68% | Mutant 31% | Hauler-Mutant Dominant Class ---------------- Mutant | -10/Materials Mutant | -10/Subcaves Mutant | -7/Scraptown Resources | -11 -10 -10 -7 ----------- Run | Yrd Mat Sub Scr Matter Collected 473 | 240 51 93 89 Remotely . | . . . . Salvage Created 287 | 27 50 210 . Parts 20 | 6 2 12 . Haulers Intercepted . | . . . . Recyclers Shooed . | . . . . Parts Field Recycled . | . . . . Retrieved Matter . | . . . . Parts Self-Destructed 22 | . . 20 2 Prevented 1 | . . 1 . Kills | -11 -10 -10 -7 ------- Run | Yrd Mat Sub Scr Combat Hostiles Destroyed 7 | . 1 6 . Guns 7 | . 1 6 . Classes Destroyed 6 | 1 1 4 . Tunneler 1 | 1 . . . Turret 2 | . . 2 . Swarmer 4 | . . 4 . Grunt 1 | . 1 . . Sentry 1 | . . 1 . Subdweller 1 | . . 1 . Best Kill Streak 3 | 1 1 3 . Combat Bots Only 3 | . 1 3 . Max Kills in Single Turn 1 | 1 1 1 . Gunslinging . | . . . . Exploded . | . . . . Melee . | . . . . Uniques/NPCs Destroyed . | . . . . Combat | -11 -10 -10 -7 -------- Run | Yrd Mat Sub Scr Hostile Shots Fired 134 | . 5 96 33 Missed 49 | . 1 37 11 Hits 85 | . 4 59 22 Projectile 85 | . 4 59 22 AOE 1 | . . 1 . Critical Strikes 1 | . . . 1 Damage Taken 875 | . 44 467 364 Core 268 | . 11 139 118 Absorbed by Shields . | . . . . Core Remaining (%) 100 | 100 . . . Volleys Fired 30 | 1 6 23 . Largest 2 | 2 2 2 . Hottest 100 | 60 60 100 . Shots Fired 52 | 2 12 38 . Gun 46 | 2 12 32 . Cannon . | . . . . Launcher . | . . . . Special 6 | . . 6 . Kinetic 30 | 1 6 23 . Thermal 6 | . . 6 . Explosive . | . . . . Electromagnetic 16 | 1 6 9 . Robot Hit Streak 7 | 1 6 7 . Robot Miss Streak 3 | 1 3 2 . Penetration Max . | . . . . Secondary Targets 2 | . . 2 . Max Gunslinging Chain 1 | . . 1 . Shots Hit Robots 28 | 1 6 21 . Core Hits 16 | 1 2 13 . Critical Kills . | . . . . Critical Parts Destroyed 1 | . . 1 . Critical Strikes 1 | . . 1 . Destroy 1 | . . 1 . Melee Attacks . | . . . . Impact . | . . . . Slashing . | . . . . Piercing . | . . . . Sneak Attacks . | . . . . Combat Hostiles . | . . . . Follow-up Attacks . | . . . . Damage Inflicted 387 | 12 85 290 . Guns 387 | 12 85 290 . Cannons . | . . . . Explosions . | . . . . Melee . | . . . . Ramming . | . . . . Kinetic 271 | 12 42 217 . Thermal . | . . . . Explosive . | . . . . Electromagnetic 116 | . 43 73 . Impact . | . . . . Slashing . | . . . . Piercing . | . . . . Highest Corruption 2 | . . . 2 Average Corruption 1 | . . . 1 Corruption Purged . | . . . . Corruption Blocked . | . . . . Effects 3 | . . . 3 Matter Fused 1 | . . . 1 Heat Flow Errors 1 | . . . 1 Energy Discharges 1 | . . . 1 Overload Shots . | . . . . Overflow Damage . | . . . . Projectiles . | . . . . Explosions . | . . . . Melee . | . . . . Knockbacks . | . . . . Impact . | . . . . Kinetic . | . . . . Secondary . | . . . . Self-Inflicted Damage . | . . . . Shots . | . . . . Rammed . | . . . . Targets Rammed . | . . . . Kicked . | . . . . Crushed . | . . . . Highest Temperature 181 | . 24 . 181 Average Temperature 46 | . 16 . 83 Received Heat Transfer 451 | . 24 270 157 Siege Activations . | . . . . Martial Activations . | . . . . Shielding Activations . | . . . . Robots Disrupted . | . . . . Combat Hostiles . | . . . . Robots Corrupted . | . . . . Combat Hostiles . | . . . . Parts Fried . | . . . . Impact Corruptions . | . . . . Robots Melted . | . . . . Combat Hostiles . | . . . . Parts Melted 1 | . 1 . . Heat Transferred . | . . . . Parts Sabotaged . | . . . . Parts Stolen . | . . . . Parts Stripped . | . . . . Power Chain Reactions . | . . . . Alert | -11 -10 -10 -7 ------- Run | Yrd Mat Sub Scr Maximum Alert Level . | . . . . Low Security (%) 100 | 100 100 . . Level 1 . | . . . . Level 2 . | . . . . Level 3 . | . . . . Level 4 . | . . . . Level 5 . | . . . . High Security . | . . . . Max Security . | . . . . Peak Influence 25 | 5 25 . . Initial . | . . . . Average 2 | . 3 . . Influence Increases 435 | 5 35 395 . Destroy 0b10 Robot/C 160 | . 20 140 . Destroy 0b10 Robot/NC 5 | 5 . . . Disable Machine 15 | . 15 . . Lose Combat Pursuer 255 | . . 255 . Influence Decreases 435 | 5 10 249 171 Entered New Map 184 | . . 13 171 Time Decay 201 | 5 10 186 . Lost Part 50 | . . 50 . Squads Dispatched 1 | . 1 . . Investigation . | . . . . Extermination . | . . . . Reinforcement 1 | . 1 . . Assault . | . . . . Garrison . | . . . . Intercept . | . . . . Searches Triggered . | . . . . Construction Impeded . | . . . . Haulers Reinforced . | . . . . Active Scanning Responses . | . . . . Cargo Convoy Interrupts . | . . . . Stealth | -11 -10 -10 -7 --------- Run | Yrd Mat Sub Scr Distress Signals . | . . . . Communications Jammed . | . . . . Distress Signals . | . . . . Times Spotted 49 | . 3 27 19 Peak Tracking Total 7 | . 2 6 7 Tactical Retreats 3 | . . 2 1 Traps | -11 -10 -10 -7 ------- Run | Yrd Mat Sub Scr Traps Triggered . | . . . . Indirectly . | . . . . Trap Hack Attempts . | . . . . Triggered . | . . . . Disarmed . | . . . . Reprogrammed . | . . . . Reused . | . . . . Traps Extracted . | . . . . Installed . | . . . . Triggered . | . . . . Machines | -11 -10 -10 -7 ---------- Run | Yrd Mat Sub Scr Machines Disabled 3 | . 1 2 . Max in Single Turn 1 | . 1 1 . Machines Repaired . | . . . . Machines Dismantled . | . . . . Machines Sabotaged . | . . . . Overloaded Fab Kills . | . . . . Hacking | -11 -10 -10 -7 --------- Run | Yrd Mat Sub Scr Machines Accessed 8 | . 1 . 7 Terminals 1 | . 1 . . Fabricators . | . . . . Repair Stations . | . . . . Recycling Units . | . . . . Scanalyzers . | . . . . Garrison Access . | . . . . Total Hacks 46 | . 4 . 42 Successful 46 | . 4 . 42 Failed . | . . . . Catastrophic . | . . . . Database Lockouts . | . . . . Manual . | . . . . Terminals 4 | . 4 . . Fabricators . | . . . . Repair Stations . | . . . . Recycling Units . | . . . . Scanalyzers . | . . . . Garrison Access . | . . . . Terminal Hacks 46 | . 4 . 42 Record 38 | . 2 . 36 Robot Analysis 5 | . . . 5 Alert Level 1 | . 1 . . Zone Layout 1 | . 1 . . Proto ID Catalog 1 | . . . 1 Fabricator Hacks . | . . . . Repair Station Hacks . | . . . . Recycling Unit Hacks . | . . . . Scanalyzer . | . . . . Garrison Access Hacks . | . . . . Unauthorized Hacks . | . . . . Terminals . | . . . . Fabricators . | . . . . Repair Stations . | . . . . Recycling Units . | . . . . Scanalyzers . | . . . . Garrison Access . | . . . . Data Cores Recovered . | . . . . Used . | . . . . Hacking Detections 1 | . 1 . . Full Trace Events . | . . . . Feedback Events . | . . . . Feedback Blocked . | . . . . Robot Schematics Acquired . | . . . . Robots Built . | . . . . Authchips . | . . . . Time . | . . . . Total Robot Build Rating . | . . . . Part Schematics Acquired . | . . . . Parts Built . | . . . . Authchips . | . . . . Time . | . . . . Total Part Build Rating . | . . . . Parts Repaired . | . . . . Time . | . . . . Parts Recycled . | . . . . Recycled Matter . | . . . . Retrieved Matter . | . . . . Retrieved Components . | . . . . Parts Scanalyzed . | . . . . Part Schematics Acquired . | . . . . Parts Damaged . | . . . . Bothacking | -11 -10 -10 -7 ------------ Run | Yrd Mat Sub Scr Used RIF Installer . | . . . . Robots Hacked . | . . . . Non-combat . | . . . . Combat . | . . . . Robot Hacks Applied . | . . . . Relay Couplers Released . | . . . . Fabnet Peak Effective % . | . . . . Robots Rewired . | . . . . Allies Hacked . | . . . . Hacks Repelled . | . . . . Allies | -11 -10 -10 -7 -------- Run | Yrd Mat Sub Scr Total Allies . | . . . . Largest Group . | . . . . Highest-Rated Group . | . . . . Highest-Rated Ally . | . . . . Total Orders . | . . . . Ally Attacks . | . . . . Total Damage . | . . . . Kills . | . . . . Allies Corrupted . | . . . . Allies Melted 4 | . . . 4 Intel | -11 -10 -10 -7 ------- Run | Yrd Mat Sub Scr Active Infowar (turns) 1654 | 18 135 452 1049 Terrain 1654 | 18 135 452 1049 Robot Analysis Total 5 | . . . 5 Derelict Logs Recovered . | . . . . Drone Launches . | . . . . Drone Recoveries . | . . . . Exploration | -11 -10 -10 -7 ------------- Run | Yrd Mat Sub Scr Turns Passed 2463 | 64 135 452 1812 Spaces Moved 1873 | 53 129 362 1329 Core 11 | 8 . . 3 Treads 13 | . . . 13 Legs . | . . . . Wheels 1849 | 45 129 362 1313 Hover . | . . . . Flight . | . . . . Fastest Speed 50 | 50 90 90 100 Average Speed 123 | 83 90 100 134 Slowest Speed 3450 | 90 90 105 3450 Overloaded Moves . | . . . . Propulsion Burnouts . | . . . . Robots Hopped . | . . . . Potential Cave-ins . | . . . . Cave-ins Triggered . | . . . . Exploration Rate (%) 37 | 4 36 27 82 Regions Visited 3 Branch Regions 2 Pre-discovered Areas . | . . . . Known Exits Taken . | . . . . Unknown Exits Taken 3 | 1 1 1 . Scrap Searched 4 | . . . 4 Spaces Dug . | . . . . Terrain Destroyed . | . . . . Melee . | . . . . Projectile . | . . . . AOE . | . . . . Terrain Rammed . | . . . . Walls Destroyed . | . . . . Machines Disabled . | . . . . Actions | -11 -10 -10 -7 --------- Run | Yrd Mat Sub Scr Total 1971 | 70 135 401 1365 Wait 8 | . . 8 . Move 1870 | 52 128 361 1329 Hop . | . . . . Pick Up 37 | 10 1 4 22 Fast Attach . | . . . . Attach 17 | 7 . 4 6 Detach 1 | . . . 1 Swap 1 | . . 1 . Drop 7 | . . . 7 Fire 30 | 1 6 23 . Melee . | . . . . Ram . | . . . . Kick . | . . . . Crush . | . . . . Escape Stasis . | . . . . Rewire . | . . . . Trap . | . . . . Miscellaneous . | . . . . Route ------- -11/Scrapyard -10/Materials (discovered 2 exits: [*Min] / [*Sub]) -10/Subcaves (discovered 2 exits: [*Rec] / *Scr) -7/Scraptown (discovered 1 exit: [*Fac]) History --------- Turn | Location | Event 20 | -11/Scrapyard | Discovered new exit (range 16) 65 | -11/Scrapyard | Entered Materials 66 | -10/Materials | Met a group of wandering Federalists 161 | -10/Materials | Discovered new exit (range 6) 193 | -10/Materials | Discovered new exit (range 9) 200 | -10/Materials | Entered Subcaves 201 | -10/Subcaves | Continued accompanying wandering Federalists (3) 201 | -10/Subcaves | Approached by a straggling Scientist 310 | -10/Subcaves | Discovered new exit (range 11) 315 | -10/Subcaves | Build established: Mutant 335 | -10/Subcaves | Lost 3 allies 351 | -10/Subcaves | Core integrity fell below 50% 373 | -10/Subcaves | Lost 3 parts (1p1n1w) 583 | -10/Subcaves | Shifting Twisted Machinery released Piercing Trap 646 | -10/Subcaves | Scientist uncovered a shortcut to Scraptown 652 | -10/Subcaves | Entered Scraptown 1071 | -7/Scraptown | Visited SPCMW 1114 | -7/Scraptown | Discovered new exit (range 4) 1416 | -7/Scraptown | Visited The Evicted 1437 | -7/Scraptown | Visited Red Mages 1510 | -7/Scraptown | Visited UFD Registry 1510 | -7/Scraptown | Registered with UFD as "Roughbomber" 1536 | -7/Scraptown | Visited Sword Containment 1561 | -7/Scraptown | Visited Junk Cannon Lab 1607 | -7/Scraptown | Visited Science Guys 1945 | -7/Scraptown | Visited Junk Repository 1989 | -7/Scraptown | Build established: Hauler-Mutant 2023 | -7/Scraptown | Visited Scrap Suit Storage 2122 | -7/Scraptown | Met Optimus 2122 | -7/Scraptown | Accepted into 0bPrime 2230 | -7/Scraptown | Visited Analyses Database 2252 | -7/Scraptown | Civil war broke out across Scraptown 2329 | -7/Scraptown | Lost 8 allies 2354 | -7/Scraptown | Found Scrap Suit 2460 | -7/Scraptown | Core integrity fell below 20% 2464 | -7/Scraptown | Destroyed by QV-WPD(j) with Overtuned Pulse Rifle Last Messages --------------- Acquired Lgt. Deuterium Engine. Acquired Scrap Suit. Ovr. Treads suddenly begins malfunctioning. System corrupted: Heat flow error (+201). KW-MZX(j) switches sides: "Sorry, the bolts are shinier on the other side!" KW-MZX(j) suffers critical hit (Burn). KW-MZX(j) destroyed. SJ-EL8(j) destroyed. 82-6HG(j) heat damages Ovr. Titanium Leg. System corrupted: Energy discharge (-50). 82-6HG(j) cannibalizes Ovr. Titanium Leg to repair Ovr. Titanium Leg. Ovr. Treads recovered from malfunction. E5-H53(j) suffers critical hit (Burn). E5-H53(j) critical meltdown. TM-LGV(j) destroyed. Mining Laser destroyed. 94-ZRS(j) heat short circuits Ovr. Titanium Leg. Critical hit (Burn: +50). Map ----- +----------------------------------------------------+ | | | | | | | | | | | | | | | | | | | ?????????????????????????????????????????????????? | | ?????????????????????????????????????????????????? | | ?????????????????????????????????????????????????? | | ?????????????????????????????????????????????????? | | ?????????????????????????????????????????????????? | | ?????????????????????????????????????????????????? | | ?????????????????????????????????????????????????? | | ?????????????????????????????????????????????????? | | ?????????????????????????????????????????????????? | | ?????????????????????????????????????????????????? | | ?????????????????????????????????????????????????? | | ?????????????????????????????????????????????????? | | ?????????????????????????????????????????????????? | | ???????????????????????#####???####??????????????? | | ???????????????????????#"""#??##=[###????????????? | | ?????????????????##"" ##!!"#### %=%!#####=%!##???? | | ??????????" !! =! @ ![ [[=j[j[%%!*=*#???? | | ?????????? =%[ =%! *=!%!%!=%j*!=%![[#???? | | ?????????????##################//==####!######???? | | ??????????????????????????????## *##?????????????? | | ???????????????????????????????#%!#??????????????? | | ???????????????????????????????# !#??????????????? | | ???????????????????????????????#[%#??????????????? | | ???????????????????????????????# !#? ????????????? | | ???????????????????????????????#!!#? ????????????? | | ???????????????????????????????# !#? #???????????? | | ???????????????????????????????#=%#? ???????????? | | ???????????????????????????????#!!#? #?###???????? | | ??????????????????????""???????#![#? #? ????????? | | ??????????????????????? ???????#==#? # ?????????? | | ???????????????????????? ??????#! ## # ??????????? | | ????????????????????????? ?????# ## ???????????? | | ?????????????? ??????????#%????# ## #???????????? | | ???????????### #?????#####!#####=!## ##########??? | | ????????"""""" """""""""""[%*"""%* " "## """"#??? | | ??????? ![ [![ "## """"#??? | | ?????? "## " "#??? | | ?????? "##=!! ""#??? | | ??????? % "#=%!%[ #??? | | ???????? != *=!*X"#??? | | ????????"""""""""""""""""""""""" =%= #" " "#??? | +----------------------------------------------------+ Best States ------------- Heat Dissipation 25 Energy Generation 15 Energy Capacity 200 Matter Stores 300 Matter Capacity 300 Sight Range 16 Terrain Scan Range 16 Terrain Scan Density 10 Evasion (%) 42 Recoil Reduction 1 Item Schematics ----------------- None Robot Schematics ------------------ None Fabricated ------------ Nothing Repaired ---------- Nothing Alien Tech Used ----------------- None Achievements -------------- Armchair Analyst Challenges ------------ None Game ------ Seed LinkedBarrageMultitool Manual? 0 Play Time 00:29:08 Cumulative 15.6 hours Start 2025.06.21 @ 16:21:07 End 2025.06.21 @ 16:47:52 Sessions 1 Manual Loads 0 Difficulty Rogue Special Mode None Game No. 35 Rogue 32 Adventurer 3 Explorer 0 Win Type - Total 0 Types 0/0/0/0/0/0/0/0/0/0 Lore% 9 Gallery% 24 Achievement% 19 Wizard Run 0 Options --------- Layout 1 ASCII 0 Keyboard 0 Movement Mouse Keybinds 0 Fullscreen 1 Font 16/SmallcapsGlow Map View 50x40 Zoom Use 0% Tactical HUD 0 Map Filters NONE Filters NONE Steam SD RUN: 29a781a6-800a-4359-bf1a-c1be4c8508d3